bitfinex-derivatives/quotes_BTCF0:USTF0_20241022
["timestamp","ask_amount","ask_price","bid_price","bid_amount"]
[1729622592175,0.07421,67406.0,67405.0,0.07643633]
[1729622592477,0.07421,67406.0,67405.0,0.1884104]
[1729622593766,0.07421,67406.0,67405.0,0.07643633]
[1729622593965,0.07421,67406.0,67405.0,0.18835229]
[1729622594167,0.07421,67406.0,67405.0,0.29193409]
[1729622594370,0.07421,67406.0,67405.0,0.18835229]
[1729622596571,0.07421,67406.0,67405.0,0.35835229]
[1729622597174,0.07421,67406.0,67405.0,0.45221937]
[1729622598675,0.07421,67406.0,67405.0,0.45369942]
[1729622599085,0.07421,67406.0,67405.0,0.45147409]
[1729622599475,0.07421,67406.0,67405.0,0.28147409]
[1729622600384,0.07421,67406.0,67405.0,0.20730284]
[1729622601490,0.3608,67406.0,67405.0,0.31088464]
[1729622601789,0.43501,67406.0,67405.0,0.12816311]
[1729622601987,0.43501,67406.0,67405.0,0.03935598]
[1729622602374,0.88009,67406.0,67405.0,0.03935598]
[1729622602588,0.074215,67402.0,67400.0,0.08880713]
[1729622602887,0.244216,67401.0,67397.0,0.08880713]
[1729622603076,0.5308,67398.0,67393.0,0.00880713]
[1729622603281,0.5308,67398.0,67380.0,0.075639]
[1729622603282,0.074236,67383.0,67380.0,0.075639]
[1729622603485,2.105036,67383.0,67382.0,0.11477659]
[1729622604082,2.105036,67383.0,67382.0,0.00222609]
[1729622605083,2.12504603,67383.0,67382.0,0.00222609]
[1729622606181,0.074237,67382.0,67371.0,0.074248]
[1729622606486,0.074248,67373.0,67369.0,0.0336]
[1729622606680,0.074248,67373.0,67372.0,0.074248]
[1729622608391,0.244248,67373.0,67372.0,0.074248]
[1729622608695,0.3184617,67373.0,67372.0,0.074248]
[1729622608879,0.3184617,67373.0,67365.0,0.17]
[1729622608880,0.2442137,67373.0,67365.0,0.17]
[1729622609080,0.074252,67369.0,67368.0,0.074251]
[1729622609284,0.244252,67369.0,67368.0,0.074251]
[1729622609692,0.5308,67369.0,67361.0,0.2064]
[1729622609889,0.244258,67363.0,67362.0,0.110659]
[1729622610385,1.5,67363.0,67362.0,0.280659]
[1729622610685,0.074255,67366.0,67362.0,0.280659]
[1729622610893,0.074255,67366.0,67365.0,0.074255]
[1729622611288,1.574255,67366.0,67365.0,0.074255]
[1729622611785,0.074255,67366.0,67365.0,0.074255]
[1729622611981,0.5308,67369.0,67365.0,0.074255]
[1729622611982,0.3608,67369.0,67365.0,0.17]
[1729622612186,1.935052,67369.0,67368.0,0.074252]
[1729622612489,1.5,67369.0,67368.0,0.074252]
[1729622612689,1.5,67369.0,67368.0,0.31795353]
[1729622612884,1.5,67369.0,67368.0,0.244252]
[1729622613088,1.574251,67369.0,67368.0,0.244252]
[1729622613489,1.574251,67369.0,67368.0,0.14793543]
[1729622613688,1.574251,67369.0,67368.0,0.074252]
[1729622614195,0.074251,67369.0,67368.0,0.074252]
[1729622615994,0.074251,67369.0,67368.0,0.14793543]
[1729622619599,0.074251,67369.0,67368.0,0.241597]
[1729622620290,0.074251,67369.0,67368.0,0.16791357]
[1729622620689,0.074251,67369.0,67368.0,0.24159917]
[1729622621396,0.074251,67369.0,67368.0,0.16791357]
[1729622621786,0.074251,67369.0,67368.0,0.16784797]
[1729622624303,0.074251,67369.0,67368.0,0.33784797]
[1729622624793,1.50076,67371.0,67370.0,0.07425]
[1729622624993,1.50076,67371.0,67370.0,0.16784597]
[1729622624994,1.574249,67371.0,67370.0,0.16784597]
[1729622626493,1.574249,67371.0,67370.0,0.16802482]
[1729622627505,1.574249,67371.0,67370.0,0.16806889]
[1729622627701,0.074249,67371.0,67370.0,0.16806889]
[1729622628106,0.0742137,67373.0,67372.0,0.074248]
[1729622628311,0.00222682,67387.0,67372.0,0.62038014]
[1729622628611,0.00222682,67387.0,67386.0,0.16291663]
[1729622628907,0.02192702,67387.0,67386.0,0.16805089]
[1729622629099,0.00222682,67387.0,67386.0,0.16805089]
[1729622629298,0.00222682,67387.0,67386.0,0.20545089]
[1729622629497,0.07645782,67387.0,67386.0,0.20545089]
[1729622629703,0.07645782,67387.0,67386.0,0.29417777]
[1729622629903,0.07645782,67387.0,67386.0,0.20545089]
[1729622631108,0.07645782,67387.0,67386.0,0.20462922]
[1729622631301,0.07645782,67387.0,67386.0,0.31557574]
[1729622637400,0.07645782,67387.0,67386.0,0.27817574]
[1729622637605,0.07645782,67387.0,67386.0,0.074232]
[1729622638304,0.00222682,67387.0,67386.0,0.074232]
[1729622638510,0.074227,67393.0,67392.0,0.074225]
[1729622638710,0.074227,67393.0,67392.0,0.1333948]
[1729622640611,0.074227,67393.0,67392.0,0.074225]
[1729622640913,0.074226,67392.0,67391.0,0.0591698]
[1729622641114,0.07423,67389.0,67388.0,0.07423]
[1729622644904,0.41751584,67396.0,67395.0,0.074222]
[1729622644905,0.45493784,67396.0,67395.0,0.074222]
[1729622645107,0.45493784,67396.0,67395.0,0.244222]
[1729622645310,0.074222,67395.0,67394.0,0.05916093]
[1729622645509,0.38071584,67396.0,67394.0,0.09303567]
[1729622645709,0.38071584,67396.0,67395.0,0.09304118]
[1729622645915,0.45493684,67396.0,67395.0,0.09304118]
[1729622647618,0.45493684,67396.0,67395.0,0.16726318]
[1729622649412,0.45493684,67396.0,67395.0,0.25599148]
[1729622649721,0.09413684,67396.0,67395.0,0.16726318]
[1729622650015,0.01991584,67396.0,67395.0,0.44794198]
[1729622650217,0.074218,67399.0,67395.0,0.37371998]
[1729622650514,0.074218,67399.0,67398.0,0.074219]
[1729622650719,0.074218,67399.0,67398.0,0.16726018]
[1729622652516,0.3608,67404.0,67403.0,0.074214]
[1729622652716,0.074209,67407.0,67406.0,0.074209]
[1729622652912,0.074209,67407.0,67406.0,0.16684265]
[1729622653623,0.074209,67407.0,67406.0,0.24077575]
[1729622654122,0.074209,67407.0,67406.0,0.1481421]
[1729622654320,0.074209,67407.0,67406.0,0.24063342]
[1729622654516,0.074209,67407.0,67406.0,0.074209]
[1729622654821,0.074209,67407.0,67406.0,0.16673845]
[1729622655213,0.074209,67407.0,67406.0,0.14812734]
[1729622655412,0.074209,67407.0,67406.0,0.16675003]
[1729622655813,0.01980779,67409.0,67408.0,0.074208]
[1729622656009,0.01980779,67409.0,67408.0,0.31811054]
[1729622656010,0.074207,67409.0,67408.0,0.31811054]
[1729622656223,0.074207,67409.0,67408.0,0.244208]
[1729622656413,0.074207,67409.0,67408.0,0.41056175]
[1729622656825,0.074207,67409.0,67408.0,0.41059596]
[1729622657119,0.074207,67409.0,67408.0,0.31811054]
[1729622657311,0.074207,67409.0,67408.0,0.33668989]
[1729622658022,0.074207,67409.0,67408.0,0.33672635]
[1729622658618,0.074207,67409.0,67408.0,0.41066373]
[1729622659128,0.074207,67409.0,67408.0,0.33672635]
[1729622659819,0.01993223,67410.0,67409.0,0.074207]
[1729622660020,0.074206,67410.0,67409.0,0.16672535]
[1729622660211,0.074206,67410.0,67409.0,0.24063871]
[1729622660626,0.074206,67410.0,67409.0,0.16672535]
[1729622661133,0.14837897,67410.0,67409.0,0.16672535]
[1729622662438,0.14837897,67410.0,67409.0,0.27672535]
[1729622662615,0.14837897,67410.0,67409.0,0.2765675]
[1729622662816,0.14837897,67410.0,67409.0,0.38665316]
[1729622667428,0.14837897,67410.0,67409.0,0.184207]
[1729622667721,0.14837897,67410.0,67409.0,0.22852179]
[1729622669023,0.14837897,67410.0,67409.0,0.545007]
[1729622669333,0.07417297,67410.0,67409.0,0.545007]
[1729622672825,0.07417297,67410.0,67409.0,0.655007]
[1729622673027,0.07417297,67410.0,67409.0,0.54964796]
[1729622673420,0.07417297,67410.0,67409.0,0.18884795]
[1729622673821,0.07417297,67410.0,67409.0,0.184207]
[1729622674020,0.07417297,67410.0,67409.0,0.188848]
[1729622674830,0.07417297,67410.0,67409.0,0.549648]
[1729622675132,0.07417297,67410.0,67409.0,0.54964787]
[1729622675321,0.01207297,67410.0,67409.0,1.10468787]
[1729622675519,0.0787,67438.0,67437.0,0.074176]
[1729622675824,0.02001238,67439.0,67438.0,0.074175]
[1729622676024,0.074169,67445.0,67444.0,0.074166]
[1729622676325,0.074169,67445.0,67444.0,0.36375678]
[1729622676529,0.074169,67445.0,67444.0,0.27528564]
[1729622676725,0.0815,67447.0,67446.0,0.074166]
[1729622676922,0.155665,67447.0,67446.0,0.16528564]
[1729622677433,0.155665,67447.0,67446.0,0.25368612]
[1729622677727,0.155665,67447.0,67446.0,0.16528564]
[1729622678326,1.655665,67447.0,67446.0,0.16528564]
[1729622679232,1.655665,67447.0,67446.0,0.16471881]
[1729622679624,1.655665,67447.0,67446.0,0.09111964]
[1729622680028,1.655665,67447.0,67446.0,0.16451965]
[1729622680326,1.655665,67447.0,67446.0,0.14772106]
[1729622681129,1.655665,67447.0,67446.0,0.074166]
[1729622681736,1.655665,67447.0,67445.0,0.07355506]
[1729622681737,1.5815,67447.0,67445.0,0.07355506]
[1729622681932,0.074166,67446.0,67445.0,0.07355506]
[1729622682133,0.074166,67446.0,67445.0,0.074166]
[1729622683433,0.11774689,67446.0,67445.0,0.074166]
[1729622683938,0.1175754,67446.0,67445.0,0.074166]
[1729622684236,0.074166,67446.0,67445.0,0.074166]
[1729622684943,0.11757245,67446.0,67445.0,0.074166]
[1729622685138,1.54146,67447.0,67442.0,0.53232]
[1729622685438,1.614865,67447.0,67446.0,0.074166]
[1729622686137,1.614865,67447.0,67446.0,0.244166]
[1729622687247,1.574165,67447.0,67446.0,0.244166]
[1729622687548,0.0393,67455.0,67454.0,0.074157]
[1729622688442,0.113456,67455.0,67454.0,0.074157]
[1729622688637,0.133688,67455.0,67454.0,0.074157]
[1729622692237,0.133688,67455.0,67454.0,0.11819075]
[1729622692749,0.133688,67455.0,67454.0,0.074157]
[1729622694246,0.133688,67455.0,67448.0,0.47899675]
[1729622694550,0.133688,67455.0,67448.0,0.434963]
[1729622694551,0.074163,67449.0,67448.0,0.434963]
[1729622694750,0.074163,67449.0,67448.0,0.074163]
[1729622696047,0.074163,67449.0,67448.0,0.11819675]
[1729622696249,0.074163,67449.0,67448.0,0.074163]
[1729622700153,0.074163,67449.0,67448.0,0.13298027]
[1729622700361,0.074163,67449.0,67448.0,0.24298027]
[1729622700558,0.14829308,67449.0,67448.0,0.24298027]
[1729622701158,0.14829308,67449.0,67448.0,0.184163]
[1729622703158,0.14829308,67449.0,67448.0,0.63534083]
[1729622704055,0.07413008,67449.0,67448.0,0.63534083]
[1729622704558,0.07413008,67449.0,67448.0,1.19014083]
[1729622704752,0.07413008,67449.0,67448.0,1.29752322]
[1729622705157,0.07413008,67449.0,67448.0,1.40045345]
[1729622705360,0.07413008,67449.0,67448.0,1.29752322]
[1729622705679,0.07413,67480.0,67448.0,2.0269027]
[1729622705965,0.074136,67476.0,67475.0,0.184133]
[1729622706264,0.074136,67476.0,67475.0,0.244133]
[1729622706567,0.041,67478.0,67477.0,0.074132]
[1729622707054,0.115131,67478.0,67477.0,0.074132]
[1729622707450,0.041,67478.0,67477.0,0.074132]
[1729622708065,0.115131,67478.0,67477.0,0.074132]
[1729622708464,0.041,67478.0,67469.0,0.3608]
[1729622708667,0.17,67472.0,67469.0,0.3608]
[1729622708852,0.07414,67470.0,67469.0,0.3608]
[1729622709361,0.07414,67470.0,67463.0,0.17]
[1729622709362,0.074148,67463.0,67462.0,0.11842664]
[1729622709868,0.074148,67463.0,67462.0,0.11834982]
[1729622710364,0.074148,67463.0,67462.0,0.074148]
[1729622712064,0.3608,67477.0,67461.0,0.24637338]
[1729622712065,0.074149,67462.0,67461.0,0.24637338]
[1729622712868,0.074149,67462.0,67461.0,0.3367811]
[1729622713566,0.074149,67462.0,67461.0,0.33671981]
[1729622714371,0.074149,67462.0,67461.0,0.34135723]
[1729622714557,0.074149,67462.0,67461.0,0.33671981]
[1729622714966,0.074149,67462.0,67461.0,0.4251061]
[1729622716877,0.074149,67462.0,67461.0,0.33671981]
[1729622717173,0.074149,67462.0,67461.0,0.42514694]
[1729622718476,0.074149,67462.0,67461.0,0.33671981]
[1729622718770,0.074149,67462.0,67461.0,0.42514694]
[1729622719271,0.074149,67462.0,67461.0,0.33671981]
[1729622719472,0.074149,67462.0,67461.0,0.33753578]
[1729622720866,0.074149,67462.0,67461.0,0.44613429]
[1729622722781,0.074149,67462.0,67461.0,0.44622259]
[1729622723181,0.074149,67462.0,67461.0,0.44399921]
[1729622724671,0.06152666,67465.0,67464.0,0.074146]
[1729622724876,0.06152666,67465.0,67464.0,0.8046681]
[1729622725073,0.042,67465.0,67464.0,0.8046681]
[1729622726370,0.3608,67487.0,67474.0,0.074135]
[1729622726371,0.112535,67475.0,67474.0,0.074135]
[1729622726575,0.0393,67475.0,67474.0,0.27530868]
[1729622726886,0.11,67481.0,67474.0,0.27530868]
[1729622726887,0.074128,67481.0,67480.0,0.074128]
[1729622727182,0.074128,67481.0,67480.0,0.38334708]
[1729622727379,0.074128,67481.0,67480.0,0.38174222]
[1729622727783,0.074128,67481.0,67480.0,0.184128]
[1729622728380,0.074128,67481.0,67480.0,0.074128]
[1729622729775,0.09417903,67482.0,67481.0,0.074128]
[1729622729979,0.07409383,67482.0,67481.0,0.074128]
[1729622731387,0.14822083,67482.0,67481.0,0.074128]
[1729622731683,0.07409383,67482.0,67481.0,0.074128]
[1729622733386,0.07409383,67482.0,67481.0,0.115128]
[1729622733682,0.07409383,67482.0,67481.0,0.15935396]
[1729622733984,1e-08,67483.0,67482.0,0.518687]
[1729622734184,1e-08,67483.0,67482.0,0.561687]
[1729622734577,1e-08,67483.0,67482.0,0.117127]
[1729622734780,1e-08,67483.0,67482.0,0.251127]
[1729622735582,1e-08,67483.0,67482.0,0.695687]
[1729622735977,1e-08,67483.0,67482.0,0.87412199]
[1729622736381,1e-08,67483.0,67482.0,0.78567006]
[1729622736681,1e-08,67483.0,67482.0,0.78563912]
[1729622740977,1e-08,67483.0,67482.0,0.34107912]
[1729622741178,1e-08,67483.0,67482.0,0.3246102]
[1729622741378,1e-08,67483.0,67482.0,0.41440647]
[1729622741687,1e-08,67483.0,67482.0,0.414453]
[1729622742279,1e-08,67483.0,67482.0,0.3246102]
[1729622742883,1e-08,67483.0,67482.0,0.251127]
[1729622744389,1e-08,67483.0,67482.0,0.29519544]
[1729622744588,1e-08,67483.0,67482.0,0.251127]
[1729622744984,1e-08,67483.0,67482.0,0.29519585]
[1729622745585,1e-08,67483.0,67482.0,0.251127]
[1729622749493,1e-08,67483.0,67482.0,0.29521064]
[1729622749695,1e-08,67483.0,67482.0,0.251127]
[1729622750297,1e-08,67483.0,67482.0,0.29521064]
[1729622750988,0.074115,67493.0,67492.0,0.074116]
[1729622751195,0.074115,67493.0,67492.0,0.16457549]
[1729622751393,0.074115,67493.0,67492.0,0.25279079]
[1729622751589,0.074115,67493.0,67492.0,0.16457549]
[1729622752193,0.074115,67493.0,67492.0,0.25279313]
[1729622752394,0.074115,67493.0,67492.0,0.16457549]
[1729622752588,0.042,67494.0,67492.0,0.16457549]
[1729622752589,0.042,67494.0,67492.0,0.17870663]
[1729622752796,0.116115,67494.0,67493.0,0.16457449]
[1729622753396,0.116115,67494.0,67493.0,0.25282163]
[1729622754290,0.116115,67494.0,67493.0,0.27457449]
[1729622756500,0.116115,67494.0,67493.0,0.38248403]
[1729622757902,0.116115,67494.0,67493.0,0.27457449]
[1729622759792,0.116115,67494.0,67493.0,0.36302177]
[1729622760201,0.116115,67494.0,67493.0,0.27552744]
[1729622760398,0.042,67494.0,67493.0,0.27552744]
[1729622760591,0.042,67494.0,67493.0,0.38436987]
[1729622761194,0.042,67494.0,67493.0,0.38439626]
[1729622765603,0.042,67494.0,67493.0,0.74519626]
[1729622766104,0.042,67494.0,67493.0,0.98174906]
[1729622766408,0.042,67494.0,67493.0,0.87174906]
[1729622767004,0.042,67494.0,67493.0,0.98174906]
[1729622767203,0.0841,67502.0,67501.0,0.074106]
[1729622767405,0.0841,67502.0,67501.0,0.74518726]
[1729622767808,0.0409,67502.0,67501.0,0.84851834]
[1729622768103,0.0409,67502.0,67501.0,0.87124604]
[1729622768301,0.02172855,67508.0,67501.0,0.90714004]
[1729622768499,0.00222282,67508.0,67507.0,0.648143]
[1729622768704,0.00222282,67508.0,67507.0,0.84842426]
[1729622769004,0.00222282,67508.0,67507.0,0.84634354]
[1729622769202,0.00222282,67508.0,67507.0,0.544899]
[1729622769203,0.07632082,67508.0,67507.0,0.544899]
[1729622770305,0.07632082,67508.0,67507.0,0.86867815]
[1729622770910,0.07632082,67508.0,67507.0,0.98673765]
[1729622771211,0.07632082,67508.0,67507.0,0.86867815]
[1729622771903,0.07632082,67508.0,67507.0,0.97194468]
[1729622772109,0.07632082,67508.0,67507.0,0.97192911]
[1729622772301,0.07632082,67508.0,67507.0,0.7433659]
[1729622773106,0.00222282,67508.0,67507.0,0.74361587]
[1729622774210,0.07632082,67508.0,67507.0,0.74361587]
[1729622776613,0.074098,67508.0,67507.0,0.74361587]
[1729622780309,0.0821,67511.0,67510.0,0.074096]
[1729622780513,0.0821,67511.0,67510.0,0.36311178]
[1729622781011,0.0821,67511.0,67510.0,0.184096]
[1729622781404,0.156195,67511.0,67510.0,0.184096]
[1729622783419,0.230257,67511.0,67510.0,0.184096]
[1729622787321,0.230257,67511.0,67510.0,0.074096]
[1729622787515,0.190557,67511.0,67510.0,0.184096]
[1729622788118,0.190557,67511.0,67510.0,0.3839067]
[1729622791727,0.190557,67511.0,67510.0,0.2739067]
[1729622791925,0.190557,67511.0,67510.0,0.16537983]
[1729622792724,0.190557,67511.0,67510.0,0.27510105]
[1729622795530,0.13865162,67511.0,67510.0,0.40249826]
[1729622796024,0.13865162,67511.0,67510.0,0.074096]
[1729622796227,0.13865162,67511.0,67510.0,0.184096]
[1729622800130,0.13865162,67511.0,67510.0,0.22838406]
[1729622800831,0.13865162,67511.0,67510.0,0.22840337]
[1729622801532,0.13865162,67511.0,67510.0,0.184096]
[1729622803129,0.13865162,67511.0,67510.0,0.51387354]
[1729622804626,0.13865162,67511.0,67510.0,0.38624448]
[1729622806130,0.13865162,67511.0,67510.0,0.184096]
[1729622806334,0.13865162,67511.0,67510.0,0.38612827]
[1729622809138,0.13865162,67511.0,67510.0,0.3862849]
[1729622809327,0.13865162,67511.0,67510.0,0.29404383]
[1729622809526,0.13865162,67511.0,67510.0,0.38631549]
[1729622811238,0.13865162,67511.0,67510.0,0.38629769]
[1729622814631,0.13865162,67511.0,67510.0,0.61829006]
[1729622814632,0.074062,67511.0,67510.0,0.61829006]
[1729622814828,0.0431,67529.0,67520.0,0.074085]
[1729622815040,0.02191671,67525.0,67524.0,0.184081]
[1729622815332,0.00222208,67525.0,67524.0,0.51323899]
[1729622815532,0.00222208,67525.0,67524.0,0.6313702]
[1729622815739,0.00222208,67525.0,67524.0,0.65771921]
[1729622815933,0.00222208,67525.0,67524.0,0.51323899]
[1729622816133,0.00222208,67525.0,67524.0,0.74708269]
[1729622816740,0.00222208,67525.0,67524.0,0.87397594]
[1729622816938,0.00222208,67525.0,67524.0,0.97717316]
[1729622817137,0.00222208,67525.0,67524.0,0.97710877]
[1729622817335,0.00222208,67525.0,67524.0,0.87396114]
[1729622818136,0.00222208,67525.0,67524.0,0.544881]
[1729622819548,0.07630108,67525.0,67524.0,0.544881]
[1729622819744,0.07630108,67525.0,67524.0,0.434881]
[1729622820243,0.07630108,67525.0,67524.0,0.544881]
[1729622821639,0.09584537,67525.0,67524.0,0.544881]
[1729622823733,0.00222208,67525.0,67524.0,0.544881]
[1729622825146,0.00222208,67525.0,67524.0,0.63696265]
[1729622828645,0.00222208,67525.0,67524.0,0.63692244]
[1729622829440,0.00222208,67525.0,67524.0,0.74660398]
[1729622830552,0.074072,67534.0,67533.0,0.07407]
[1729622830743,0.074072,67534.0,67533.0,0.27611144]
[1729622833245,0.074072,67534.0,67533.0,0.18407]
[1729622837663,0.074072,67534.0,67533.0,0.29407]
[1729622840051,0.074072,67534.0,67533.0,0.18407]
[1729622840454,0.01969819,67535.0,67534.0,0.07407]
[1729622840648,0.074068,67536.0,67535.0,0.074064]
[1729622843556,0.074068,67536.0,67535.0,0.184064]
[1729622843960,0.09416958,67536.0,67535.0,0.184064]
[1729622844256,0.09416958,67536.0,67535.0,0.27655118]
[1729622845564,0.09416958,67536.0,67535.0,0.16655118]
[1729622848272,0.13479624,67536.0,67535.0,0.074064]
[1729622849564,0.09416958,67536.0,67535.0,0.074064]
[1729622852473,0.13463426,67536.0,67535.0,0.074064]
[1729622854370,0.0427,67543.0,67542.0,0.074061]
[1729622854573,0.0427,67543.0,67542.0,0.544861]
[1729622854574,0.04053623,67543.0,67542.0,0.544861]
[1729622855374,0.35825496,67550.0,67542.0,0.99565901]
[1729622855580,0.074055,67548.0,67547.0,0.17729492]
[1729622855767,0.074055,67548.0,67547.0,0.38103761]
[1729622855969,0.074055,67548.0,67547.0,0.51641798]
[1729622856571,0.074055,67548.0,67547.0,0.6343857]
[1729622856767,0.074055,67548.0,67547.0,0.51641798]
[1729622856973,0.074055,67548.0,67547.0,0.38779569]
[1729622857170,0.074055,67548.0,67547.0,0.61954389]
[1729622857371,0.074055,67548.0,67547.0,0.4910148]
[1729622857774,0.074055,67548.0,67547.0,0.72957699]
[1729622857975,0.074055,67548.0,67547.0,0.61957699]
[1729622858279,0.074055,67548.0,67547.0,0.72957699]
[1729622858572,0.074055,67548.0,67547.0,0.4910148]
[1729622858972,0.074055,67548.0,67547.0,0.38779569]
[1729622861279,0.02210804,67550.0,67549.0,0.074053]
[1729622861476,0.02210804,67550.0,67549.0,0.27779569]
[1729622862679,0.09616004,67550.0,67549.0,0.27697582]
[1729622863577,0.02210804,67550.0,67549.0,0.27697582]
[1729622864176,0.02210804,67550.0,67549.0,0.31857582]
[1729622864485,0.09612728,67550.0,67549.0,0.31857582]
[1729622867685,0.17017928,67550.0,67549.0,0.31857582]
[1729622868477,0.17017928,67550.0,67549.0,0.44763265]
[1729622868884,0.17017928,67550.0,67549.0,0.55069563]
[1729622869079,0.17017928,67550.0,67549.0,0.44763265]
[1729622869280,0.17017928,67550.0,67549.0,0.31857582]
[1729622869481,0.09612728,67550.0,67549.0,0.115653]
[1729622870082,0.09612728,67550.0,67549.0,0.22684861]
[1729622870388,0.09612728,67550.0,67549.0,0.32013652]
[1729622870590,0.09612728,67550.0,67549.0,0.115653]
[1729622878601,0.09612728,67550.0,67549.0,0.32075045]
[1729622880490,0.0516682,67550.0,67549.0,0.32075045]
[1729622881893,0.07106874,67550.0,67549.0,0.32075045]
[1729622882799,0.0516682,67550.0,67549.0,0.32075045]
[1729622883897,0.01977109,67553.0,67549.0,0.40844185]
[1729622884091,0.3608,67558.0,67534.0,0.3608]
[1729622884092,0.074051,67551.0,67550.0,0.20509745]
[1729622884300,0.074061,67543.0,67542.0,0.07406]
[1729622884507,0.074061,67543.0,67542.0,0.18625556]
[1729622884709,0.074061,67543.0,67542.0,0.07406]
[1729622884904,0.074061,67543.0,67542.0,0.18501112]
[1729622885204,0.074057,67546.0,67545.0,0.074055]
[1729622885401,0.074057,67546.0,67545.0,0.184055]
[1729622885707,0.074057,67546.0,67545.0,0.24311754]
[1729622887798,0.074057,67546.0,67545.0,0.184055]
[1729622888302,0.074057,67546.0,67545.0,0.24311754]
[1729622888493,0.074057,67546.0,67545.0,0.184055]
[1729622888911,0.074057,67546.0,67544.0,0.05906254]
[1729622888912,0.074058,67545.0,67544.0,0.05906254]
[1729622889109,0.074058,67545.0,67538.0,0.074064]
[1729622889110,0.07406,67543.0,67538.0,0.074064]
[1729622889402,0.184064,67539.0,67538.0,0.074064]
[1729622889600,0.074064,67539.0,67538.0,0.184064]
[1729622892104,0.0419,67540.0,67538.0,0.11]
[1729622892301,0.074062,67542.0,67539.0,0.074064]
[1729622892504,0.074062,67542.0,67541.0,0.184062]
[1729622899413,0.074062,67542.0,67541.0,0.27670755]
[1729622900209,0.184062,67542.0,67541.0,0.20306294]
[1729622900803,0.184062,67542.0,67541.0,0.09264555]
[1729622903908,0.074065,67538.0,67537.0,0.074066]
[1729622904109,0.11,67538.0,67537.0,0.27774755]
[1729622905510,0.184065,67538.0,67537.0,0.27774755]
[1729622908317,0.294065,67538.0,67529.0,0.14618689]
[1729622908524,0.074073,67531.0,67530.0,0.11063537]
[1729622908723,0.11,67530.0,67529.0,0.0442605]
[1729622909021,0.184074,67530.0,67529.0,0.0442605]
[1729622909415,0.074076,67528.0,67527.0,0.41981922]
[1729622909817,0.074076,67528.0,67527.0,0.3608]
[1729622910020,0.074076,67528.0,67527.0,0.434877]
[1729622910315,0.074076,67528.0,67527.0,0.49389726]
[1729622911115,0.0412,67537.0,67527.0,0.49389726]
[1729622911320,0.074071,67534.0,67533.0,0.074068]
[1729622911924,0.074071,67534.0,67533.0,0.184068]
[1729622914523,0.074068,67536.0,67535.0,0.074067]
[1729622915829,0.074068,67536.0,67535.0,0.19998965]
[1729622916632,0.074068,67536.0,67535.0,0.30336999]
[1729622917635,0.074068,67536.0,67535.0,0.19998965]
[1729622918133,0.074068,67536.0,67535.0,0.12592265]
[1729622918329,0.074068,67536.0,67535.0,0.23394322]
[1729622918726,0.074068,67536.0,67535.0,0.33733256]
[1729622919638,0.074068,67536.0,67535.0,0.10802057]
[1729622923449,0.074068,67536.0,67535.0,0.19873152]
[1729622923645,0.074068,67536.0,67531.0,0.2703989]
[1729622923849,0.074072,67532.0,67531.0,0.2703989]
[1729622924240,0.074072,67532.0,67531.0,0.226073]
[1729622924741,0.074072,67532.0,67531.0,0.116073]
[1729622925149,0.074072,67532.0,67531.0,0.16040225]
[1729622925344,0.074072,67532.0,67531.0,0.042]
[1729622927750,0.074074,67530.0,67528.0,0.08634366]
[1729622927939,0.184074,67530.0,67525.0,0.05910121]
[1729622928150,0.074079,67525.0,67524.0,0.05910121]
[1729622928941,0.11,67525.0,67523.0,0.05910121]
[1729622929240,0.11,67525.0,67522.0,0.0429]
[1729622929241,0.074082,67523.0,67522.0,0.0429]
[1729622929545,0.184082,67523.0,67522.0,0.0429]
[1729622930750,0.184082,67523.0,67522.0,0.24266489]
[1729622930751,0.20331665,67523.0,67522.0,0.24266489]
[1729622931342,0.09331665,67523.0,67522.0,0.24266489]
[1729622931547,0.09331665,67523.0,67522.0,0.31674789]
[1729622932148,0.09331665,67523.0,67522.0,0.24266489]
[1729622932954,0.09331665,67523.0,67522.0,0.19976489]
[1729622935748,1.00839665,67523.0,67522.0,0.18367263]
[1729622935951,1.00839665,67523.0,67522.0,0.18415643]
[1729622936254,1.00839665,67523.0,67522.0,0.07504295]
[1729622936653,1.00839665,67523.0,67522.0,0.08868288]
[1729622936852,0.074087,67518.0,67513.0,0.10338934]
[1729622937047,0.074094,67512.0,67511.0,0.074094]
[1729622937253,0.074087,67518.0,67511.0,0.34573037]
[1729622937548,0.074093,67514.0,67513.0,0.074091]
[1729622937749,0.074093,67514.0,67513.0,0.30982137]
[1729622938061,0.074093,67514.0,67513.0,0.41325461]
[1729622938359,0.074093,67514.0,67513.0,0.30982137]
[1729622938559,0.074093,67514.0,67513.0,0.41323724]
[1729622938856,0.074093,67514.0,67513.0,0.18317256]
[1729622939056,0.184093,67514.0,67513.0,0.18317256]
[1729622940055,0.184093,67514.0,67513.0,0.075091]
[1729622940257,0.184093,67514.0,67513.0,0.076091]
[1729622942060,0.184093,67514.0,67513.0,0.436891]
[1729622942357,0.184093,67514.0,67513.0,0.076091]
[1729622942762,0.074093,67514.0,67513.0,0.186091]
[1729622943459,0.20420488,67514.0,67513.0,0.186091]
[1729622943850,0.20420488,67514.0,67513.0,0.076091]
[1729622944459,0.20420488,67514.0,67513.0,0.002]
[1729622945263,0.20420488,67514.0,67513.0,0.11049831]
[1729622945460,0.20420488,67514.0,67513.0,0.09055656]
[1729622945764,0.20420488,67514.0,67513.0,0.11052468]
[1729622946360,0.20420488,67514.0,67513.0,0.18461768]
[1729622947672,0.20420488,67514.0,67513.0,0.11052468]
[1729622948261,0.67500488,67514.0,67513.0,0.11052468]
[1729622948458,0.67500488,67514.0,67513.0,0.002]
[1729622950463,0.67500488,67514.0,67513.0,0.001]
[1729622950867,0.67500488,67514.0,67513.0,0.09143443]
[1729622952469,1.11936488,67514.0,67513.0,0.09143443]
[1729622953869,1.11936488,67514.0,67510.0,0.08860712]
[1729622954069,0.074094,67512.0,67511.0,0.18001377]
[1729622954275,0.074094,67512.0,67511.0,0.09140665]
[1729622955674,0.294094,67512.0,67511.0,0.09140665]
[1729622956274,0.294094,67512.0,67511.0,0.18001377]
[1729622956771,0.294094,67512.0,67511.0,0.09140665]
[1729622959774,0.738454,67512.0,67511.0,0.09140665]
[1729622959968,0.074106,67501.0,67496.0,0.10341587]
[1729622960164,0.074108,67499.0,67498.0,0.10927078]